Cogmind - Beta 15 @@@ ROGUE MODE // 2025.06.01 @ 15:54:43 Player: KaiserChief Result: Destroyed by Y-45 Defender with Beam Rifle Performance ------------- Evolutions (2) 1000 Regions Visited (5) 1000 Robots Destroyed (18) 90 Value Destroyed (334) 334 Prototype IDs (1) 20 Alien Tech Used (0) 0 Bonus (-21) -21 TOTAL SCORE: 2423 Bonus ------- Friendly Fire -21 Cogmind --------- Core Integrity 0/550 Matter 250/300 Energy 98/100 System Corruption 0% Temperature Cool (27) Movement Core (50) Location -8/Storage Parts ------- > --- POWER (1) -------- (None) > --- PROPULSION (4) --- (None) > --- UTILITY (4) ------ (None) > --- WEAPON (2) ------- (None) > --- INVENTORY (5) ---- Improved Ion Engine Peak State ------------ > --- POWER ------------ Improved Ion Engine > --- PROPULSION ------- Aluminum Leg Aluminum Leg Aluminum Leg Improved Aluminum Leg > --- UTILITY ---------- Seismic Detector Hardened Light Armor Plating > --- WEAPON ----------- Heavy EM Pulse Gun Shock Bomb Launcher > --- INVENTORY -------- Improved Ion Engine Aluminum Leg EM Pulse Gun Improved Medium Laser [Rating: 15] Favorites ----------- Power Ion Engine Engine Ion Engine Propulsion Aluminum Leg Leg Aluminum Leg Utility Seismic Detector Device Seismic Detector Protection Hardened Light Armor Plating Weapon EM Pulse Gun Energy Gun EM Pulse Gun Energy Cannon Heavy Particle Cannon Ballistic Gun Light Assault Rifle Launcher Shock Bomb Launcher Build | -11 -10 -9 -9 -8 -8 ------- Run | Yrd Mat Mat Min Mat Sto Slots Evolved 4 | . . 2 . 2 . Power . | . . . . . . Propulsion 2 | . . 2 . . . Utility 2 | . . . . 2 . Weapon . | . . . . . . Parts Attached 22 | 6 1 7 2 . 6 Power 2 | 1 . 1 . . . Engine 2 | 1 . 1 . . . Core . | . . . . . . Reactor . | . . . . . . Propulsion 6 | 2 . 4 . . . Treads . | . . . . . . Leg 6 | 2 . 4 . . . Wheel . | . . . . . . Hover . | . . . . . . Flight . | . . . . . . Utility 4 | 1 1 . 1 . 1 Device 2 | 1 1 . . . . Storage . | . . . . . . Processor . | . . . . . . Hackware . | . . . . . . Protection 2 | . . . 1 . 1 Artifact . | . . . . . . Weapon 10 | 2 . 2 1 . 5 Energy Gun 3 | 1 . 2 . . . Energy Cannon 5 | . . . . . 5 Ballistic Gun 1 | 1 . . . . . Ballistic Cannon . | . . . . . . Launcher 1 | . . . 1 . . Special Weapon . | . . . . . . Impact Weapon . | . . . . . . Slashing Weapon . | . . . . . . Piercing Weapon . | . . . . . . Special Melee Weapon . | . . . . . . Unidentified Prototypes 1 | . . 1 . . . Parts Lost 16 | . . . 4 . 12 Power 1 | . . . . . 1 Propulsion 3 | . . . 1 . 2 Utility 4 | . . . 1 . 3 Weapon 8 | . . . 2 . 6 Highest Loss Streak 12 | . . . 4 . 12 To Critical Strikes . | . . . . . . Average Backups 4 | 1 3 4 4 3 2 Power . | . 1 1 1 1 1 Propulsion . | . 1 . . . . Utility . | . . 1 . . . Weapon 1 | 1 1 2 2 2 1 Tool/Special . | . . . . . . Unused Backups 7 | . . 6 . . 1 Power 2 | . . 1 . . 1 Propulsion 1 | . . 1 . . . Utility 1 | . . 1 . . . Weapon 3 | . . 3 . . . Tool/Special . | . . . . . . Average Slot Usage (%) 94 | . 97 99 98 63 51 Engine 10 | . 14 11 11 9 6 Leg 40 | . 28 43 44 36 23 Device 20 | . 25 22 20 9 5 Energy Gun 13 | . 14 15 16 . 3 Ballistic Gun 6 | . 14 6 . . . Peak Build Rating 15 | 6 7 14 15 10 14 Average Rating 10 | 4 6 10 13 10 8 On Entrance 7 | . 6 7 14 10 10 Naked Turns 31 | . . . . . 31 Heaviest Build 22 | 9 11 16 22 13 21 Greatest Support 43 | 20 20 43 43 43 43 Greatest Overweight (x) 4 | . . . . . 4 Average Overweight (x) . | . . . . . . Largest Inventory Capacity 5 | 5 5 5 5 5 5 Average Capacity 5 | 5 5 5 5 5 5 Most Carried 5 | 4 5 5 5 4 4 Average Carried 4 | 1 3 4 4 3 2 Final Capacity 5 | 5 5 5 5 5 5 Final Carried 5 | 2 5 5 3 4 1 Class Distribution -------------------- 100% | Mutant Dominant Class ---------------- Mutant | -10/Materials Mutant | -9/Materials Mutant | -9/Mines Mutant | -8/Materials Mutant | -8/Storage Resources | -11 -10 -9 -9 -8 -8 ----------- Run | Yrd Mat Mat Min Mat Sto Matter Collected 426 | 235 . 113 78 . . Remotely . | . . . . . . Salvage Created 622 | 30 . 350 193 . 49 Parts 42 | 2 . 23 13 . 4 Haulers Intercepted 2 | . . 2 . . . Recyclers Shooed . | . . . . . . Parts Field Recycled . | . . . . . . Retrieved Matter . | . . . . . . Parts Self-Destructed . | . . . . . . Prevented . | . . . . . . Kills | -11 -10 -9 -9 -8 -8 ------- Run | Yrd Mat Mat Min Mat Sto Combat Hostiles Destroyed 21 | . . 8 12 . 1 Guns 11 | . . 8 3 . . Cannons 1 | . . . . . 1 AOE 9 | . . . 9 . . Classes Destroyed 6 | 1 . 3 1 . 1 Tunneler 1 | 1 . . . . . Hauler 2 | . . 2 . . . Swarmer 10 | . . 4 6 . . Grunt 4 | . . 4 . . . Duelist 1 | . . . . . 1 Assembled 6 | . . . 6 . . Best Kill Streak 6 | 1 . 6 6 . 1 Combat Bots Only 6 | . . 4 6 . 1 Max Kills in Single Turn 3 | 1 . 1 3 . 1 Gunslinging . | . . . . . . Exploded 3 | . . . 3 . . Melee . | . . . . . . Uniques/NPCs Destroyed . | . . . . . . Combat | -11 -10 -9 -9 -8 -8 -------- Run | Yrd Mat Mat Min Mat Sto Hostile Shots Fired 177 | . . 19 49 . 109 Missed 44 | . . 5 20 . 19 Hits 133 | . . 14 29 . 90 Melee 25 | . . . 10 . 15 Projectile 108 | . . 14 19 . 75 Critical Strikes 13 | . . . . . 13 Damage Taken 2220 | . . 143 496 . 1581 Core 664 | . . 10 90 . 564 Absorbed by Shields . | . . . . . . Core Remaining (%) 91 | 100 100 . 75 . . Volleys Fired 52 | 5 1 22 10 . 14 Largest 2 | 2 2 2 2 . 2 Hottest 131 | 60 60 101 81 . 131 Shots Fired 98 | 8 2 44 18 . 26 Gun 77 | 8 2 44 10 . 13 Cannon 13 | . . . . . 13 Launcher 8 | . . . 8 . . Special . | . . . . . . Kinetic 11 | 5 1 5 . . . Thermal 22 | . . 7 . . 15 Explosive . | . . . . . . Electromagnetic 65 | 3 1 32 18 . 11 Robot Hit Streak 7 | 3 . 5 6 . 7 Robot Miss Streak 5 | 3 . 5 2 . 3 Penetration Max . | . . . . . . Secondary Targets 1 | . . 1 . . . Max Gunslinging Chain 1 | . . 1 . . . Shots Hit Robots 42 | 5 . 21 6 . 10 Core Hits 31 | 2 . 11 16 . 2 Critical Kills . | . . . . . . Critical Parts Destroyed . | . . . . . . Critical Strikes 1 | . . 1 . . . Corrupt 1 | . . 1 . . . Melee Attacks . | . . . . . . Impact . | . . . . . . Slashing . | . . . . . . Piercing . | . . . . . . Sneak Attacks . | . . . . . . Combat Hostiles . | . . . . . . Follow-up Attacks . | . . . . . . Damage Inflicted 978 | 47 . 356 368 . 207 Guns 456 | 47 . 309 67 . 33 Cannons 174 | . . . . . 174 Explosions 348 | . . 47 301 . . Melee . | . . . . . . Ramming . | . . . . . . Kinetic 33 | 19 . 14 . . . Thermal 225 | . . 100 . . 125 Explosive . | . . . . . . Electromagnetic 720 | 28 . 242 368 . 82 Impact . | . . . . . . Slashing . | . . . . . . Piercing . | . . . . . . Highest Corruption 9 | . . . 9 . . Average Corruption 5 | . . . 5 . . Corruption Purged . | . . . . . . Corruption Blocked . | . . . . . . Effects 1 | . . . 1 . . Message Errors 1 | . . . 1 . . Overload Shots . | . . . . . . Overflow Damage . | . . . . . . Projectiles . | . . . . . . Explosions . | . . . . . . Melee . | . . . . . . Knockbacks . | . . . . . . Impact . | . . . . . . Kinetic . | . . . . . . Secondary . | . . . . . . Self-Inflicted Damage 78 | . . 28 50 . . Shots 5 | . . 1 4 . . Rammed . | . . . . . . Targets Rammed 1 | . . 1 . . . Kicked 1 | . . 1 . . . Crushed . | . . . . . . Highest Temperature 435 | 20 20 134 57 . 435 Average Temperature 84 | 13 15 44 21 . 158 Received Heat Transfer 642 | . . 30 . . 612 Siege Activations . | . . . . . . Martial Activations . | . . . . . . Shielding Activations . | . . . . . . Robots Disrupted . | . . . . . . Combat Hostiles . | . . . . . . Robots Corrupted . | . . . . . . Combat Hostiles . | . . . . . . Parts Fried 1 | . . . 1 . . Impact Corruptions . | . . . . . . Robots Melted . | . . . . . . Combat Hostiles . | . . . . . . Parts Melted . | . . . . . . Heat Transferred 346 | . . 161 . . 185 Parts Sabotaged . | . . . . . . Parts Stolen . | . . . . . . Parts Stripped . | . . . . . . Power Chain Reactions 2 | . . 1 1 . . Alert | -11 -10 -9 -9 -8 -8 ------- Run | Yrd Mat Mat Min Mat Sto Maximum Alert Level . | . . . . . . Low Security (%) 100 | 100 100 100 100 100 100 Level 1 . | . . . . . . Level 2 . | . . . . . . Level 3 . | . . . . . . Level 4 . | . . . . . . Level 5 . | . . . . . . High Security . | . . . . . . Max Security . | . . . . . . Peak Influence 184 | 5 5 114 184 5 30 Initial 27 | . . . 27 5 . Average 27 | 1 . 22 112 2 4 Influence Increases 476 | 5 5 209 177 . 80 Destroy 0b10 Robot/C 300 | . . 160 120 . 20 Destroy 0b10 Robot/NC 15 | 5 . 10 . . . Destroy Leader 64 | . . 34 20 . 10 Successful Hack 8 | . 5 . . . 3 Disable Machine 60 | . . . 30 . 30 Destroy Structure 14 | . . 5 7 . 2 Lose Combat Pursuer 15 | . . . . . 15 Influence Decreases 471 | 5 5 137 235 14 75 Entered New Map 54 | . . . 45 9 . Time Decay 356 | 5 5 137 150 5 54 Lost Part 61 | . . . 40 . 21 Squads Dispatched 2 | . . 2 . . . Investigation . | . . . . . . Extermination . | . . . . . . Reinforcement 2 | . . 2 . . . Assault . | . . . . . . Garrison . | . . . . . . Intercept . | . . . . . . Searches Triggered . | . . . . . . Construction Impeded 1 | . . 1 . . . Haulers Reinforced . | . . . . . . Active Scanning Responses . | . . . . . . Cargo Convoy Interrupts . | . . . . . . Stealth | -11 -10 -9 -9 -8 -8 --------- Run | Yrd Mat Mat Min Mat Sto Distress Signals 4 | . . 3 . . 1 Communications Jammed . | . . . . . . Distress Signals . | . . . . . . Times Spotted 50 | . 5 18 16 . 11 Peak Tracking Total 9 | . 3 4 6 . 9 Tactical Retreats 5 | . . 3 1 . 1 Traps | -11 -10 -9 -9 -8 -8 ------- Run | Yrd Mat Mat Min Mat Sto Traps Triggered . | . . . . . . Indirectly . | . . . . . . Trap Hack Attempts . | . . . . . . Triggered . | . . . . . . Disarmed . | . . . . . . Reprogrammed . | . . . . . . Reused . | . . . . . . Traps Extracted . | . . . . . . Installed . | . . . . . . Triggered . | . . . . . . Machines | -11 -10 -9 -9 -8 -8 ---------- Run | Yrd Mat Mat Min Mat Sto Machines Disabled 4 | . . . 2 . 2 Max in Single Turn 2 | . . . 2 . 1 Machines Repaired . | . . . . . . Machines Dismantled . | . . . . . . Machines Sabotaged . | . . . . . . Overloaded Fab Kills . | . . . . . . Hacking | -11 -10 -9 -9 -8 -8 --------- Run | Yrd Mat Mat Min Mat Sto Machines Accessed 4 | . 1 1 . . 2 Terminals 3 | . 1 1 . . 1 Fabricators . | . . . . . . Repair Stations . | . . . . . . Recycling Units 1 | . . . . . 1 Scanalyzers . | . . . . . . Garrison Access . | . . . . . . Total Hacks 4 | . 1 1 . . 2 Successful 3 | . 1 1 . . 1 Failed 1 | . . . . . 1 Catastrophic . | . . . . . . Database Lockouts . | . . . . . . Manual 1 | . . . . . 1 Terminals 3 | . 1 1 . . 1 Fabricators . | . . . . . . Repair Stations . | . . . . . . Recycling Units 1 | . . . . . 1 Scanalyzers . | . . . . . . Garrison Access . | . . . . . . Terminal Hacks 2 | . 1 1 . . . Zone Layout 2 | . 1 1 . . . Fabricator Hacks . | . . . . . . Repair Station Hacks . | . . . . . . Recycling Unit Hacks . | . . . . . . Scanalyzer . | . . . . . . Garrison Access Hacks . | . . . . . . Unauthorized Hacks 1 | . . . . . 1 Terminals . | . . . . . . Fabricators . | . . . . . . Repair Stations . | . . . . . . Recycling Units 1 | . . . . . 1 Monitor 1 | . . . . . 1 Scanalyzers . | . . . . . . Garrison Access . | . . . . . . Data Cores Recovered . | . . . . . . Used . | . . . . . . Hacking Detections 2 | . . . . . 2 Full Trace Events . | . . . . . . Feedback Events . | . . . . . . Feedback Blocked . | . . . . . . Robot Schematics Acquired . | . . . . . . Robots Built . | . . . . . . Authchips . | . . . . . . Time . | . . . . . . Total Robot Build Rating . | . . . . . . Part Schematics Acquired . | . . . . . . Parts Built . | . . . . . . Authchips . | . . . . . . Time . | . . . . . . Total Part Build Rating . | . . . . . . Parts Repaired . | . . . . . . Time . | . . . . . . Parts Recycled . | . . . . . . Recycled Matter . | . . . . . . Retrieved Matter . | . . . . . . Retrieved Components . | . . . . . . Parts Scanalyzed . | . . . . . . Part Schematics Acquired . | . . . . . . Parts Damaged . | . . . . . . Bothacking | -11 -10 -9 -9 -8 -8 ------------ Run | Yrd Mat Mat Min Mat Sto Used RIF Installer . | . . . . . . Robots Hacked . | . . . . . . Non-combat . | . . . . . . Combat . | . . . . . . Robot Hacks Applied . | . . . . . . Relay Couplers Released . | . . . . . . Fabnet Peak Effective % . | . . . . . . Robots Rewired . | . . . . . . Allies Hacked . | . . . . . . Hacks Repelled . | . . . . . . Allies | -11 -10 -9 -9 -8 -8 -------- Run | Yrd Mat Mat Min Mat Sto Total Allies . | . . . . . . Largest Group . | . . . . . . Highest-Rated Group . | . . . . . . Highest-Rated Ally . | . . . . . . Total Orders . | . . . . . . Ally Attacks . | . . . . . . Total Damage . | . . . . . . Kills . | . . . . . . Allies Corrupted . | . . . . . . Allies Melted . | . . . . . . Intel | -11 -10 -9 -9 -8 -8 ------- Run | Yrd Mat Mat Min Mat Sto Active Infowar (turns) 2649 | 28 270 1848 302 42 159 Seismic 2649 | 28 270 1848 302 42 159 ECM 2172 | . 234 1672 266 . . Robot Analysis Total . | . . . . . . Derelict Logs Recovered . | . . . . . . Drone Launches . | . . . . . . Drone Recoveries . | . . . . . . Exploration | -11 -10 -9 -9 -8 -8 ------------- Run | Yrd Mat Mat Min Mat Sto Turns Passed 2782 | 74 270 1848 302 42 246 Spaces Moved 1054 | 45 189 426 187 35 172 Core 88 | 7 . . . . 81 Treads . | . . . . . . Legs 966 | 38 189 426 187 35 91 Wheels . | . . . . . . Hover . | . . . . . . Flight . | . . . . . . Fastest Speed 50 | 50 120 120 120 120 50 Average Speed 115 | 109 120 120 120 120 96 Slowest Speed 250 | 120 120 120 120 120 250 Overloaded Moves . | . . . . . . Propulsion Burnouts . | . . . . . . Robots Hopped . | . . . . . . Potential Cave-ins . | . . . . . . Cave-ins Triggered . | . . . . . . Exploration Rate (%) 22 | 3 22 28 47 5 32 Regions Visited 5 Branch Regions 2 Pre-discovered Areas 1 | . . . 1 . . Known Exits Taken . | . . . . . . Unknown Exits Taken 5 | 1 1 1 1 1 . Scrap Searched 1 | . . . 1 . . Spaces Dug . | . . . . . . Terrain Destroyed 14 | . . 5 7 . 2 Melee . | . . . . . . Projectile 2 | . . . . . 2 AOE 12 | . . 5 7 . . Terrain Rammed . | . . . . . . Walls Destroyed . | . . . . . . Machines Disabled . | . . . . . . Actions | -11 -10 -9 -9 -8 -8 --------- Run | Yrd Mat Mat Min Mat Sto Total 2522 | 63 230 1723 245 35 226 Wait 1350 | . 36 1248 44 . 22 Move 1049 | 44 188 425 186 34 172 Hop . | . . . . . . Pick Up 30 | 8 4 10 . 1 7 Fast Attach . | . . . . . . Attach 21 | 6 1 2 2 . 10 Detach . | . . . . . . Swap 9 | . . 5 3 . 1 Drop 10 | . . 10 . . . Fire 52 | 5 1 22 10 . 14 Melee . | . . . . . . Ram . | . . . . . . Kick 1 | . . 1 . . . Crush . | . . . . . . Escape Stasis . | . . . . . . Rewire . | . . . . . . Trap . | . . . . . . Miscellaneous . | . . . . . . Route ------- -11/Scrapyard -10/Materials -9/Materials -9/Mines -8/Materials -8/Storage History --------- Turn | Location | Event 5 | -11/Scrapyard | Discovered new exit (range 15) 75 | -11/Scrapyard | Entered Materials 303 | -10/Materials | Build established: Mutant 303 | -10/Materials | Discovered new exit (range 13) 345 | -10/Materials | Entered another Materials area 345 | -9/Materials | Evolved 2 slots: Propulsion x2 2179 | -9/Materials | Discovered new exit (range 11) 2193 | -9/Materials | Entered Mines 2390 | -9/Mines | Assembled infested the area 2395 | -9/Mines | Assisted by a Guerilla fighting off Assembled 2478 | -9/Mines | Discovered new exit (range 16) 2481 | -9/Mines | Learned location of Storage (-8) 2495 | -9/Mines | Entered Materials 2495 | -8/Materials | Evolved 2 slots: Utility x2 2505 | -8/Materials | Discovered new exit (range 14) 2518 | -8/Materials | Lost 4 parts (1n1u2w) 2537 | -8/Materials | Entered Storage 2733 | -8/Storage | Core integrity fell below 50% 2756 | -8/Storage | Core integrity fell below 20% 2783 | -8/Storage | Lost 12 parts (1p2n3u6w) 2783 | -8/Storage | Destroyed by Y-45 Defender with Beam Rifle Last Messages --------------- Critical hit (Burn: +37). Acquired EM Pulse Cannon. Critical hit (Burn: +37). Imp. Light Armor Plating destroyed. EM Pulse Cannon destroyed. U-05 Engineer builds a Wall. EM Pulse Cannon destroyed. S-10 Pest destroyed. K-01 Serf collects debris. W-25 Informer sends out distress signal. >> MONITOR: Recycling Unit S002 accepting Aluminum Leg (8%). >> MONITOR: Recycling Unit S002 accepting Aluminum Leg (65%). >> MONITOR: Recycling Unit S002 accepting Hvy. Particle Cannon (40%). >> MONITOR: Recycling Unit S002 accepting Corrupted Imp. Aluminum Leg (62%). K-01 Serf cleans the Transfer Shaft. Critical hit (Burn: +37). Map ----- +----------------------------------------------------+ | | | | | | | ?????????????????????##############?????##??? | | ?????????????????????# #????# ? | | ?????????????????????# """"" #????# """ | | ?????????????????????# """"" #???"" """ | | ?????????????????????# """"" ##??"T """ | | ?????????????????????# #???" | | ??????????????????# #####+##/##+####### | | ??????????????????# #### + """ | | ??????????????????+ #######+#### R" | | ??????????????????# ## ## """ | | ?????????????????## """ ## """ ## | | ????????????###### """ ## """ #####+# | | ??????????? """ ## """ # | | ??????????? ## ==%* + | | ??????????????#### + """ # | | ?????????????????# """s ## """ #####+# | | ?????????????????# """ ## """ ## | | ?????????????????# kY""" ## ! ## """ | | ?????????????????# ###"Y"###### """ | | ?????????????????# #?#"""#??### """ | | ????????# ##### #?#####??#"" | | ????????+ #????????#"Y "" | | ????????# @ #????????#"" "" | | ????????# # k #????????### """ | | ?????????????# ##############??????????# | | ???????????????????????????????????????###"T" | | ?????????????????????????????????????????#### | | ????????????????????????????????????????????? | | ????????????????????????????????????????????? | | ????????????????????????????????????????????? | | ????????????????????????????????????????????? | | ????????????????????????????????????????????? | | ????????????????????????????????????????????? | | ????????????????????????????????????????????? | | ????????????????????????????????????????????? | | ????????????????????????????????????????????? | | ????????????????????????????????????????????? | | ????????????????????????????????????????????? | | ????????????????????????????????????????????? | | ????????????????????????????????????????????? | | ????????????????????????????????????????????? | | ????????????????????????????????????????????? | | ????????????????????????????????????????????? | | ????????????????????????????????????????????? | | ????????????????????????????????????????????? | | ????????????????????????????????????????????? | | ????????????????????????????????????????????? | +----------------------------------------------------+ Best States ------------- Heat Dissipation 31 Energy Generation 12 Energy Capacity 265 Matter Stores 300 Matter Capacity 300 Sight Range 16 Terrain Scan Density 10 ECM Strength 1 Armor Coverage 150 Evasion (%) 55 Item Schematics ----------------- None Robot Schematics ------------------ None Fabricated ------------ Nothing Repaired ---------- Nothing Alien Tech Used ----------------- None Achievements -------------- None Challenges ------------ None Game ------ Seed TrapGrenadeBlaster Manual? 0 Play Time 00:21:00 Cumulative 14.9 hours Start 2025.06.01 @ 15:33:51 End 2025.06.01 @ 15:54:43 Sessions 1 Manual Loads 0 Difficulty Rogue Special Mode None Game No. 25 Rogue 25 Adventurer 0 Explorer 0 Win Type - Total 0 Types 0/0/0/0/0/0/0/0/0/0 Lore% 20 Gallery% 20 Achievement% 18 Wizard Run 0 Options --------- Layout 2 ASCII 0 Keyboard 0 Movement Numpad Keybinds 0 Fullscreen 1 Font 24/Proggy Map View 50x44 Zoom Use 0% Tactical HUD 0 Map Filters NONE Filters NONE Steam 1 RUN: 0589cf9c-ac8a-4db5-89e8-38e2b8d6f5ce